[Event "Live Chess"]
[Site "Chess.com"]
[Date "2023.05.20"]
[Round "-"]
[White "KuriyamaMiraiUA"]
[Black "SimpleHarmonic1"]
[Result "0-1"]
[WhiteElo "655"]
[BlackElo "2070"]
[TimeControl "300"]
[EndTime "10:04:58 PDT"]
[Termination "SimpleHarmonic1 won by checkmate"]

1. d4 {[%clk 0:04:58.7]} 1... Nf6 {[%clk 0:04:58.9]} 2. c4 {[%clk 0:04:57.2]}
2... e6 {[%clk 0:04:57.8]} 3. Nc3 {[%clk 0:04:55.9]} 3... Bb4 {[%clk 0:04:56.5]}
4. e3 {[%clk 0:04:51.2]} 4... O-O {[%clk 0:04:55.3]} 5. Bd3 {[%clk 0:04:43.7]}
5... b6 {[%clk 0:04:53.9]} 6. Ne2 {[%clk 0:04:39.5]} 6... Bb7 {[%clk 0:04:44]}
7. O-O {[%clk 0:04:35.5]} 7... d5 {[%clk 0:04:40]} 8. a3 {[%clk 0:04:28.5]} 8...
Bxc3 {[%clk 0:04:38.1]} 9. Nxc3 {[%clk 0:04:26.9]} 9... c5 {[%clk 0:04:35.7]}
10. dxc5 {[%clk 0:03:50.6]} 10... bxc5 {[%clk 0:04:32.9]} 11. b4 {[%clk
0:03:43.3]} 11... d4 {[%clk 0:04:27.5]} 12. exd4 {[%clk 0:03:37.3]} 12... cxd4
{[%clk 0:04:27.4]} 13. Ne2 {[%clk 0:03:19.7]} 13... h6 {[%clk 0:04:24.5]} 14.
Bf4 {[%clk 0:03:06.8]} 14... Re8 {[%clk 0:03:46.1]} 15. Be5 {[%clk 0:03:05]}
15... Nc6 {[%clk 0:03:42.4]} 16. Bxf6 {[%clk 0:03:03.9]} 16... Qxf6 {[%clk
0:03:39.6]} 17. Ng3 {[%clk 0:02:51.3]} 17... e5 {[%clk 0:03:25.7]} 18. Ne4
{[%clk 0:02:36.5]} 18... Qe7 {[%clk 0:03:20.3]} 19. b5 {[%clk 0:02:15.9]} 19...
Nd8 {[%clk 0:03:12.2]} 20. c5 {[%clk 0:02:12]} 20... Bxe4 {[%clk 0:02:51.7]} 21.
Bxe4 {[%clk 0:02:08.6]} 21... Rc8 {[%clk 0:02:51.4]} 22. c6 {[%clk 0:02:06.5]}
22... Ne6 {[%clk 0:02:46.6]} 23. Qf3 {[%clk 0:01:55.1]} 23... Ng5 {[%clk
0:02:41.4]} 24. Qf5 {[%clk 0:01:46.5]} 24... Nxe4 {[%clk 0:02:38.8]} 25. Qxe4
{[%clk 0:01:45.9]} 25... g6 {[%clk 0:02:33]} 26. Rac1 {[%clk 0:01:37.6]} 26...
f5 {[%clk 0:02:26.4]} 27. Qd5+ {[%clk 0:01:29.8]} 27... Kh7 {[%clk 0:02:18.2]}
28. Rfe1 {[%clk 0:01:15.8]} 28... Rcd8 {[%clk 0:02:10.3]} 29. Qc5 {[%clk
0:01:03]} 29... Qxc5 {[%clk 0:02:08.2]} 30. Rxc5 {[%clk 0:01:01.9]} 30... e4
{[%clk 0:02:07.2]} 31. c7 {[%clk 0:00:57.7]} 31... Rc8 {[%clk 0:02:05.3]} 32.
Rd1 {[%clk 0:00:54]} 32... d3 {[%clk 0:02:04.5]} 33. f3 {[%clk 0:00:49.7]} 33...
e3 {[%clk 0:01:59.8]} 34. Rxd3 {[%clk 0:00:43]} 34... e2 {[%clk 0:01:59]} 35. h3
{[%clk 0:00:21.3]} 35... e1=Q+ {[%clk 0:01:55.9]} 36. Kh2 {[%clk 0:00:19.6]}
36... f4 {[%clk 0:01:52.7]} 37. Rd7+ {[%clk 0:00:18.2]} 37... Kg8 {[%clk
0:01:50.1]} 38. Rd8 {[%clk 0:00:14.4]} 38... Rcxd8 {[%clk 0:01:39.4]} 39. cxd8=Q
{[%clk 0:00:09.8]} 39... Rxd8 {[%clk 0:01:38.9]} 40. Rc7 {[%clk 0:00:04.9]}
40... Qg3+ {[%clk 0:01:38.1]} 41. Kg1 {[%clk 0:00:03.4]} 41... Rd1# {[%clk
0:01:37.8]} 0-1

[Event "Live Chess"]
[Site "Chess.com"]
[Date "2023.05.20"]
[Round "-"]
[White "AwesomeFredster"]
[Black "Alan_Richardson"]
[Result "0-1"]
[WhiteElo "1378"]
[BlackElo "1643"]
[TimeControl "300"]
[EndTime "10:04:58 PDT"]
[Termination "Alan_Richardson won by resignation"]

1. e4 {[%clk 0:04:59.6]} 1... c5 {[%clk 0:04:58.5]} 2. Nf3 {[%clk 0:04:58.7]}
2... Nc6 {[%clk 0:04:57.5]} 3. Bb5 {[%clk 0:04:57]} 3... Qc7 {[%clk 0:04:54.6]}
4. c3 {[%clk 0:04:54.2]} 4... Nf6 {[%clk 0:04:49.1]} 5. d4 {[%clk 0:04:48.9]}
5... Nxe4 {[%clk 0:04:44.9]} 6. dxc5 {[%clk 0:04:46]} 6... Nxc5 {[%clk
0:04:39.8]} 7. Bxc6 {[%clk 0:03:40.4]} 7... bxc6 {[%clk 0:04:26]} 8. Ne5 {[%clk
0:03:38.9]} 8... Qxe5+ {[%clk 0:04:22.6]} 9. Qe2 {[%clk 0:03:35.9]} 9... Nd3+
{[%clk 0:04:13.3]} 10. Kd1 {[%clk 0:03:31.3]} 10... Qxe2+ {[%clk 0:04:11]} 0-1

[Event "Live Chess"]
[Site "Chess.com"]
[Date "2023.05.20"]
[Round "-"]
[White "Tema1107"]
[Black "lightningorderyt"]
[Result "1-0"]
[WhiteElo "1982"]
[BlackElo "535"]
[TimeControl "300"]
[EndTime "10:05:00 PDT"]
[Termination "Tema1107 won by resignation"]

1. d4 {[%clk 0:04:57.4]} 1... d5 {[%clk 0:04:58.4]} 2. c4 {[%clk 0:04:56.7]}
2... Nf6 {[%clk 0:04:56.9]} 3. Nf3 {[%clk 0:04:54.9]} 3... c6 {[%clk 0:04:55.4]}
4. cxd5 {[%clk 0:04:52.9]} 4... cxd5 {[%clk 0:04:54]} 5. Nc3 {[%clk 0:04:52.4]}
5... Nc6 {[%clk 0:04:50]} 6. Bf4 {[%clk 0:04:20.3]} 6... Bf5 {[%clk 0:04:46.7]}
7. a3 {[%clk 0:04:18.2]} 7... e6 {[%clk 0:04:38.5]} 8. e3 {[%clk 0:03:50.1]}
8... Bd6 {[%clk 0:04:34.7]} 9. Bg3 {[%clk 0:03:41.1]} 9... O-O {[%clk 0:04:31]}
10. Bd3 {[%clk 0:03:36.1]} 10... Bxg3 {[%clk 0:03:56.8]} 11. hxg3 {[%clk
0:03:33.9]} 11... Bxd3 {[%clk 0:03:51.8]} 12. Qxd3 {[%clk 0:03:33.8]} 12... h6
{[%clk 0:03:50.8]} 13. O-O {[%clk 0:03:28.7]} 13... Qb6 {[%clk 0:03:48.8]} 14.
b4 {[%clk 0:03:26.9]} 14... Rfe8 {[%clk 0:03:19.6]} 15. Na4 {[%clk 0:03:12]}
15... Qc7 {[%clk 0:03:09.6]} 16. Rac1 {[%clk 0:03:08.2]} 16... b5 {[%clk
0:02:54.2]} 17. Qxb5 {[%clk 0:03:03.7]} 17... Rac8 {[%clk 0:02:24.4]} 18. Ne5
{[%clk 0:02:59.2]} 18... a6 {[%clk 0:01:36.9]} 19. Qxa6 {[%clk 0:02:40.2]} 19...
Ne4 {[%clk 0:01:04.1]} 20. Rxc6 {[%clk 0:02:36.2]} 20... Qd7 {[%clk 0:00:57.5]}
1-0

[Event "Live Chess"]
[Site "Chess.com"]
[Date "2023.05.20"]
[Round "-"]
[White "GEMdzq"]
[Black "LL220284LL"]
[Result "0-1"]
[WhiteElo "2272"]
[BlackElo "2411"]
[TimeControl "300"]
[EndTime "10:05:04 PDT"]
[Termination "LL220284LL won by resignation"]

1. e4 {[%clk 0:04:57.2]} 1... c5 {[%clk 0:04:58.4]} 2. d4 {[%clk 0:04:55.9]}
2... cxd4 {[%clk 0:04:58.3]} 3. c3 {[%clk 0:04:55.1]} 3... dxc3 {[%clk 0:04:57]}
4. Nxc3 {[%clk 0:04:55]} 4... e6 {[%clk 0:04:55.3]} 5. Bc4 {[%clk 0:04:54.5]}
5... Nc6 {[%clk 0:04:52.8]} 6. Nf3 {[%clk 0:04:52.2]} 6... Nf6 {[%clk
0:04:48.3]} 7. Qe2 {[%clk 0:04:48]} 7... Bc5 {[%clk 0:04:43.1]} 8. O-O {[%clk
0:04:43]} 8... d6 {[%clk 0:04:34.1]} 9. h3 {[%clk 0:04:33.8]} 9... h6 {[%clk
0:04:31.6]} 10. Rd1 {[%clk 0:04:30.5]} 10... e5 {[%clk 0:04:24.4]} 11. a3 {[%clk
0:04:14]} 11... O-O {[%clk 0:04:20.2]} 12. b4 {[%clk 0:04:11.1]} 12... Nd4
{[%clk 0:04:19]} 13. Nxd4 {[%clk 0:03:38.2]} 13... Bxd4 {[%clk 0:04:18.9]} 14.
Bb2 {[%clk 0:03:36.6]} 14... Bd7 {[%clk 0:04:08.7]} 15. Rd2 {[%clk 0:02:38]}
15... Rc8 {[%clk 0:04:01.3]} 16. Nb5 {[%clk 0:02:24.1]} 16... Bxb5 {[%clk
0:03:54.9]} 17. Bxb5 {[%clk 0:02:22.3]} 17... Bxb2 {[%clk 0:03:50.2]} 18. Rxb2
{[%clk 0:02:22.2]} 18... Qb6 {[%clk 0:03:48.1]} 19. Rd2 {[%clk 0:02:06.9]} 19...
a6 {[%clk 0:03:42.2]} 20. Ba4 {[%clk 0:02:02]} 20... Rc3 {[%clk 0:03:30.6]} 21.
Rd3 {[%clk 0:01:35.1]} 21... Rfc8 {[%clk 0:03:25.4]} 22. Qd2 {[%clk 0:01:34.3]}
22... Nxe4 {[%clk 0:03:19.1]} 23. Qe3 {[%clk 0:01:13.1]} 23... Qxe3 {[%clk
0:03:14.1]} 24. Rxe3 {[%clk 0:01:12.4]} 24... Rxe3 {[%clk 0:03:10]} 25. fxe3
{[%clk 0:01:12.3]} 25... Rc3 {[%clk 0:03:09]} 26. Rd1 {[%clk 0:01:00.9]} 26...
Rxa3 {[%clk 0:02:59.7]} 27. Bc2 {[%clk 0:00:59.7]} 27... Rxe3 {[%clk 0:02:55]}
28. Bxe4 {[%clk 0:00:54.2]} 28... Rxe4 {[%clk 0:02:54.9]} 29. Rxd6 {[%clk
0:00:52.4]} 29... Rxb4 {[%clk 0:02:53.9]} 0-1

[Event "Live Chess"]
[Site "Chess.com"]
[Date "2023.05.20"]
[Round "-"]
[White "JanMur7"]
[Black "grillage"]
[Result "1-0"]
[WhiteElo "1993"]
[BlackElo "1846"]
[TimeControl "300"]
[EndTime "10:05:14 PDT"]
[Termination "JanMur7 won by resignation"]

1. e4 {[%clk 0:04:57.8]} 1... d5 {[%clk 0:04:58.6]} 2. exd5 {[%clk 0:04:55.7]}
2... Qxd5 {[%clk 0:04:55.7]} 3. Nc3 {[%clk 0:04:54.1]} 3... Qd8 {[%clk
0:04:54.6]} 4. Bc4 {[%clk 0:04:52.4]} 4... Nf6 {[%clk 0:04:51.6]} 5. Nf3 {[%clk
0:04:51.3]} 5... a6 {[%clk 0:04:48.8]} 6. Ne5 {[%clk 0:04:49.8]} 6... e6 {[%clk
0:04:48]} 7. O-O {[%clk 0:04:48.3]} 7... Nbd7 {[%clk 0:04:47]} 8. d4 {[%clk
0:04:46.1]} 8... Nxe5 {[%clk 0:04:45.9]} 9. dxe5 {[%clk 0:04:45.2]} 9... Nd7
{[%clk 0:04:40.6]} 10. Qh5 {[%clk 0:04:27.9]} 10... b5 {[%clk 0:04:26.5]} 11.
Bxe6 {[%clk 0:04:20.8]} 11... Nxe5 {[%clk 0:04:19]} 12. Bxc8 {[%clk 0:04:08.1]}
12... Qf6 {[%clk 0:03:26.1]} 13. Bb7 {[%clk 0:03:57.3]} 13... Bc5 {[%clk
0:03:21.2]} 14. Bxa8 {[%clk 0:03:50]} 14... Bxf2+ {[%clk 0:03:18]} 15. Rxf2
{[%clk 0:03:39.1]} 1-0

[Event "Live Chess"]
[Site "Chess.com"]
[Date "2023.05.20"]
[Round "-"]
[White "Crowded_House"]
[Black "Chris_pea"]
[Result "1-0"]
[WhiteElo "1697"]
[BlackElo "615"]
[TimeControl "300"]
[EndTime "10:05:17 PDT"]
[Termination "Crowded_House won on time"]

1. d4 {[%clk 0:04:54.4]} 1... e6 {[%clk 0:04:55]} 2. Nf3 {[%clk 0:04:51.6]} 2...
d5 {[%clk 0:04:53.4]} 3. Bg5 {[%clk 0:04:50.9]} 3... Ne7 {[%clk 0:04:45]} 4. e3
{[%clk 0:04:44.9]} 4... h6 {[%clk 0:04:36.7]} 5. Bh4 {[%clk 0:04:43.2]} 5...
Nbc6 {[%clk 0:04:28.3]} 6. c3 {[%clk 0:04:34.2]} 6... g5 {[%clk 0:04:25.7]} 7.
Bg3 {[%clk 0:04:32.5]} 7... Bg7 {[%clk 0:04:12.2]} 8. Nbd2 {[%clk 0:04:29.8]}
8... e5 {[%clk 0:03:41.9]} 9. dxe5 {[%clk 0:04:28.1]} 9... Nxe5 {[%clk
0:03:32.3]} 10. Nxe5 {[%clk 0:04:26.7]} 10... Bf5 {[%clk 0:03:16.9]} 11. Nb3
{[%clk 0:04:07.2]} 11... f6 {[%clk 0:03:09.3]} 12. Nf3 {[%clk 0:03:58.1]} 12...
Qd7 {[%clk 0:02:50.4]} 13. Bd3 {[%clk 0:03:54.8]} 13... O-O-O {[%clk 0:02:41.9]}
14. Nc5 {[%clk 0:03:46.3]} 14... Qc6 {[%clk 0:02:24.3]} 15. Bxf5+ {[%clk
0:03:25.3]} 15... Nxf5 {[%clk 0:02:21.1]} 16. Nb3 {[%clk 0:03:22.8]} 16... Nxg3
{[%clk 0:02:07.9]} 17. hxg3 {[%clk 0:03:21.3]} 17... Rhe8 {[%clk 0:02:00.2]} 18.
Nfd4 {[%clk 0:03:20.1]} 18... Qc4 {[%clk 0:01:40.3]} 19. Qe2 {[%clk 0:03:06.9]}
19... Qxe2+ {[%clk 0:01:36.1]} 20. Kxe2 {[%clk 0:03:06]} 20... b6 {[%clk
0:01:02.7]} 21. Nf5 {[%clk 0:03:01]} 21... Bh8 {[%clk 0:00:53.9]} 22. Nxh6
{[%clk 0:02:58]} 22... Re5 {[%clk 0:00:37.4]} 23. Nf7 {[%clk 0:02:55.5]} 23...
Rde8 {[%clk 0:00:31.4]} 24. Nxe5 {[%clk 0:02:53.7]} 1-0

[Event "Live Chess"]
[Site "Chess.com"]
[Date "2023.05.20"]
[Round "-"]
[White "TobyQuaite"]
[Black "WelshTiger"]
[Result "0-1"]
[WhiteElo "1700"]
[BlackElo "2430"]
[TimeControl "300"]
[EndTime "10:05:17 PDT"]
[Termination "WelshTiger won by resignation"]

1. e4 {[%clk 0:04:57.3]} 1... e5 {[%clk 0:04:53.8]} 2. Nf3 {[%clk 0:04:55.8]}
2... Nc6 {[%clk 0:04:52.7]} 3. d4 {[%clk 0:04:55]} 3... exd4 {[%clk 0:04:51.8]}
4. Bc4 {[%clk 0:04:54.5]} 4... Nf6 {[%clk 0:04:47]} 5. O-O {[%clk 0:04:53.5]}
5... Nxe4 {[%clk 0:04:43.3]} 6. Re1 {[%clk 0:04:52.8]} 6... d5 {[%clk
0:04:42.9]} 7. Bxd5 {[%clk 0:04:52.3]} 7... Qxd5 {[%clk 0:04:42.3]} 8. Nc3
{[%clk 0:04:51.9]} 8... Qh5 {[%clk 0:04:35.7]} 9. Nxe4 {[%clk 0:04:48.4]} 9...
Be6 {[%clk 0:04:34.8]} 10. Neg5 {[%clk 0:04:39.7]} 10... O-O-O {[%clk
0:04:32.4]} 11. Nxe6 {[%clk 0:04:29]} 11... fxe6 {[%clk 0:04:32.3]} 12. Bg5
{[%clk 0:04:08.2]} 12... Rd5 {[%clk 0:04:28.8]} 13. Qd2 {[%clk 0:03:58.3]} 13...
Bd6 {[%clk 0:04:19.9]} 14. Rxe6 {[%clk 0:03:46.4]} 14... Rf8 {[%clk 0:04:15.5]}
15. h4 {[%clk 0:03:13]} 15... h6 {[%clk 0:04:06.8]} 16. Rxd6 {[%clk 0:03:00.3]}
16... Rxd6 {[%clk 0:04:00.6]} 17. Bf4 {[%clk 0:02:59.5]} 17... Rdf6 {[%clk
0:03:55.8]} 18. Bg3 {[%clk 0:02:56.8]} 18... Qg4 {[%clk 0:03:49.8]} 19. Re1
{[%clk 0:02:46.9]} 19... Qd7 {[%clk 0:03:43.3]} 20. c3 {[%clk 0:02:02.8]} 20...
dxc3 {[%clk 0:03:32.8]} 21. Qxc3 {[%clk 0:02:02.7]} 21... Re8 {[%clk 0:03:04.4]}
22. Be5 {[%clk 0:01:50.5]} 22... Nxe5 {[%clk 0:02:59]} 23. Nxe5 {[%clk
0:01:49.1]} 23... Qf5 {[%clk 0:02:47.2]} 24. Nf3 {[%clk 0:01:26.6]} 24... Rxe1+
{[%clk 0:02:44.8]} 25. Qxe1 {[%clk 0:01:26.5]} 25... Qd5 {[%clk 0:02:35]} 0-1

[Event "Live Chess"]
[Site "Chess.com"]
[Date "2023.05.20"]
[Round "-"]
[White "yarek"]
[Black "jusjoel"]
[Result "1-0"]
[WhiteElo "1900"]
[BlackElo "297"]
[TimeControl "300"]
[EndTime "10:05:19 PDT"]
[Termination "yarek won by resignation"]

1. e4 {[%clk 0:04:50.3]} 1... e5 {[%clk 0:04:58.9]} 2. Nf3 {[%clk 0:04:47.9]}
2... d6 {[%clk 0:04:57.5]} 3. Bc4 {[%clk 0:04:45.6]} 3... f6 {[%clk 0:04:52.5]}
4. Nc3 {[%clk 0:04:31.3]} 4... c6 {[%clk 0:04:47.2]} 5. O-O {[%clk 0:04:18.2]}
5... d5 {[%clk 0:04:43.1]} 6. exd5 {[%clk 0:04:14]} 6... cxd5 {[%clk 0:04:38.6]}
7. Bxd5 {[%clk 0:04:03.3]} 7... Bg4 {[%clk 0:04:29.4]} 8. Re1 {[%clk 0:03:54.5]}
8... Bxf3 {[%clk 0:04:22.2]} 9. Qxf3 {[%clk 0:03:51.1]} 9... Ne7 {[%clk
0:04:12.3]} 10. Bxb7 {[%clk 0:03:47.9]} 10... Qb6 {[%clk 0:03:35.2]} 11. Bxa8
{[%clk 0:03:41.7]} 11... Nd5 {[%clk 0:03:24.5]} 12. Nxd5 {[%clk 0:03:31.5]}
12... Bc5 {[%clk 0:03:17.4]} 13. Nxb6 {[%clk 0:03:28.9]} 13... Bxb6 {[%clk
0:03:13.8]} 14. Bc6+ {[%clk 0:03:19.7]} 14... Nxc6 {[%clk 0:03:10.2]} 15. Qxc6+
{[%clk 0:03:18.6]} 15... Ke7 {[%clk 0:03:07.7]} 16. c3 {[%clk 0:03:14.9]} 16...
h5 {[%clk 0:02:59.9]} 17. d4 {[%clk 0:03:12.9]} 17... Rc8 {[%clk 0:02:31.1]} 18.
Qxc8 {[%clk 0:03:10.3]} 1-0

[Event "Live Chess"]
[Site "Chess.com"]
[Date "2023.05.20"]
[Round "-"]
[White "alanmike75"]
[Black "risinghelios"]
[Result "0-1"]
[WhiteElo "1483"]
[BlackElo "1955"]
[TimeControl "300"]
[EndTime "10:05:23 PDT"]
[Termination "risinghelios won by resignation"]

1. e4 {[%clk 0:04:56.5]} 1... c5 {[%clk 0:04:58.9]} 2. Nf3 {[%clk 0:04:55.2]}
2... Nc6 {[%clk 0:04:58.4]} 3. d4 {[%clk 0:04:54]} 3... cxd4 {[%clk 0:04:58.3]}
4. Nxd4 {[%clk 0:04:52.7]} 4... g6 {[%clk 0:04:58.2]} 5. Nc3 {[%clk 0:04:50]}
5... Bg7 {[%clk 0:04:57.5]} 6. Be3 {[%clk 0:04:48.8]} 6... Qb6 {[%clk
0:04:54.1]} 7. Nb3 {[%clk 0:04:46.3]} 7... Qc7 {[%clk 0:04:52.1]} 8. Qd2 {[%clk
0:04:40.4]} 8... Nf6 {[%clk 0:04:49]} 9. Bd3 {[%clk 0:04:38.2]} 9... O-O {[%clk
0:04:47.4]} 10. O-O {[%clk 0:04:36.4]} 10... Ne5 {[%clk 0:04:45.2]} 11. h3
{[%clk 0:04:30.3]} 11... Nxd3 {[%clk 0:04:41.1]} 12. cxd3 {[%clk 0:04:28.8]}
12... d6 {[%clk 0:04:39.6]} 13. Bh6 {[%clk 0:04:23.8]} 13... Be6 {[%clk
0:04:37.5]} 14. Bxg7 {[%clk 0:04:22.1]} 14... Kxg7 {[%clk 0:04:32.8]} 15. Nd4
{[%clk 0:04:20.1]} 15... Rac8 {[%clk 0:04:30.8]} 16. Rac1 {[%clk 0:04:16.6]}
16... Qb6 {[%clk 0:04:28.7]} 17. Nxe6+ {[%clk 0:04:13.1]} 17... fxe6 {[%clk
0:04:27.2]} 18. b3 {[%clk 0:04:09.1]} 18... Nd7 {[%clk 0:04:24.4]} 19. Na4
{[%clk 0:04:03.4]} 19... Qa6 {[%clk 0:04:19.6]} 20. d4 {[%clk 0:03:58.5]} 20...
Nb6 {[%clk 0:04:14.4]} 21. Nxb6 {[%clk 0:03:53.5]} 21... Qxb6 {[%clk 0:04:14.3]}
22. Rxc8 {[%clk 0:03:47.5]} 22... Rxc8 {[%clk 0:04:14.2]} 23. Qg5 {[%clk
0:03:31.5]} 23... Rc7 {[%clk 0:04:10.1]} 24. Rd1 {[%clk 0:03:23.1]} 24... h6
{[%clk 0:04:07]} 25. Qf4 {[%clk 0:03:19.5]} 25... Qa6 {[%clk 0:03:54.8]} 26. e5
{[%clk 0:03:14.1]} 26... d5 {[%clk 0:03:52.9]} 27. Rd3 {[%clk 0:02:59.9]} 27...
Qxd3 {[%clk 0:03:51.5]} 0-1

[Event "Live Chess"]
[Site "Chess.com"]
[Date "2023.05.20"]
[Round "-"]
[White "Horseymobile"]
[Black "CheckThis4"]
[Result "0-1"]
[WhiteElo "1249"]
[BlackElo "2542"]
[TimeControl "300"]
[EndTime "10:05:24 PDT"]
[Termination "CheckThis4 won by resignation"]

1. d4 {[%clk 0:04:57.7]} 1... Nf6 {[%clk 0:04:58.1]} 2. c4 {[%clk 0:04:56]} 2...
c5 {[%clk 0:04:51.6]} 3. d5 {[%clk 0:04:52.2]} 3... b5 {[%clk 0:04:49.7]} 4. Nf3
{[%clk 0:04:46]} 4... Bb7 {[%clk 0:04:43.8]} 5. cxb5 {[%clk 0:04:23.3]} 5...
Bxd5 {[%clk 0:04:35.3]} 6. Nc3 {[%clk 0:04:18.2]} 6... Bb7 {[%clk 0:04:31.4]} 7.
Bf4 {[%clk 0:03:53]} 7... d5 {[%clk 0:04:17.3]} 8. e3 {[%clk 0:03:34.7]} 8... e6
{[%clk 0:04:15.5]} 9. Qa4 {[%clk 0:03:17.8]} 9... Nbd7 {[%clk 0:04:11.1]} 10.
O-O-O {[%clk 0:02:56.1]} 10... Nb6 {[%clk 0:04:01.3]} 11. Qa5 {[%clk 0:02:50]}
11... Bd6 {[%clk 0:03:57.6]} 12. Ne5 {[%clk 0:02:44.9]} 12... O-O {[%clk
0:03:48.8]} 13. Bd3 {[%clk 0:02:20.6]} 13... Qc7 {[%clk 0:03:40.9]} 14. Ne2
{[%clk 0:02:09.4]} 14... Bxe5 {[%clk 0:03:36.4]} 0-1

[Event "Live Chess"]
[Site "Chess.com"]
[Date "2023.05.20"]
[Round "-"]
[White "EdenHazard8"]
[Black "tpm07"]
[Result "0-1"]
[WhiteElo "2113"]
[BlackElo "1996"]
[TimeControl "300"]
[EndTime "10:05:26 PDT"]
[Termination "tpm07 won by checkmate"]

1. e4 {[%clk 0:04:58.5]} 1... e5 {[%clk 0:04:51.2]} 2. Nf3 {[%clk 0:04:57.3]}
2... Nc6 {[%clk 0:04:48.9]} 3. Bc4 {[%clk 0:04:56.8]} 3... Nf6 {[%clk
0:04:45.3]} 4. Ng5 {[%clk 0:04:55.2]} 4... d5 {[%clk 0:04:41.4]} 5. exd5 {[%clk
0:04:55.1]} 5... Na5 {[%clk 0:04:39.2]} 6. Bb5+ {[%clk 0:04:54.7]} 6... c6
{[%clk 0:04:39.1]} 7. dxc6 {[%clk 0:04:54.6]} 7... bxc6 {[%clk 0:04:38.2]} 8.
Bd3 {[%clk 0:04:54.3]} 8... Ng4 {[%clk 0:04:35.5]} 9. Nf3 {[%clk 0:04:49.5]}
9... f5 {[%clk 0:04:28.5]} 10. h3 {[%clk 0:04:29.7]} 10... Nxf2 {[%clk
0:04:26.5]} 11. Kxf2 {[%clk 0:04:28.6]} 11... Bc5+ {[%clk 0:04:24.4]} 12. Kg3
{[%clk 0:04:27.3]} 12... e4 {[%clk 0:04:20.5]} 13. Re1 {[%clk 0:04:15.3]} 13...
Qc7+ {[%clk 0:04:08.5]} 14. Kh4 {[%clk 0:04:08]} 14... Be7+ {[%clk 0:04:03.9]}
15. Kh5 {[%clk 0:04:03.6]} 15... g6+ {[%clk 0:03:51.3]} 16. Kh6 {[%clk
0:04:00.8]} 16... Bf8+ {[%clk 0:03:27]} 17. Kg5 {[%clk 0:03:59.5]} 17... Qg3+
{[%clk 0:03:25.3]} 18. Kf6 {[%clk 0:03:54]} 18... Bd6 {[%clk 0:02:44]} 19. Bxe4
{[%clk 0:03:27.2]} 19... O-O# {[%clk 0:02:37.7]} 0-1

[Event "Live Chess"]
[Site "Chess.com"]
[Date "2023.05.20"]
[Round "-"]
[White "KGreenGator"]
[Black "DorothyDawn"]
[Result "1-0"]
[WhiteElo "1768"]
[BlackElo "467"]
[TimeControl "300"]
[EndTime "10:05:27 PDT"]
[Termination "KGreenGator won by checkmate"]

1. c4 {[%clk 0:04:59.3]} 1... c5 {[%clk 0:04:57.5]} 2. Nc3 {[%clk 0:04:59]} 2...
Nc6 {[%clk 0:04:56.6]} 3. e3 {[%clk 0:04:58.1]} 3... d6 {[%clk 0:04:55.7]} 4. d4
{[%clk 0:04:57.7]} 4... e5 {[%clk 0:04:50.9]} 5. d5 {[%clk 0:04:56.8]} 5... Nb4
{[%clk 0:04:45.3]} 6. a3 {[%clk 0:04:55.4]} 6... Na6 {[%clk 0:04:40.2]} 7. Nf3
{[%clk 0:04:54.4]} 7... g6 {[%clk 0:04:38.3]} 8. e4 {[%clk 0:04:53.3]} 8... f5
{[%clk 0:04:36.1]} 9. Bg5 {[%clk 0:04:51.3]} 9... Qd7 {[%clk 0:04:30.7]} 10. Bd3
{[%clk 0:04:46.4]} 10... Bg7 {[%clk 0:04:28.8]} 11. O-O {[%clk 0:04:44.3]} 11...
Nf6 {[%clk 0:04:23.9]} 12. Re1 {[%clk 0:04:42.4]} 12... O-O {[%clk 0:04:15.4]}
13. exf5 {[%clk 0:04:40.1]} 13... Qxf5 {[%clk 0:04:09]} 14. Bxf5 {[%clk
0:04:38.2]} 14... Ne4 {[%clk 0:04:06.1]} 15. Bxe4 {[%clk 0:04:36.2]} 15... Bg4
{[%clk 0:03:53.2]} 16. Nb5 {[%clk 0:04:34.3]} 16... Bxf3 {[%clk 0:03:44.6]} 17.
Bxf3 {[%clk 0:04:32.7]} 17... e4 {[%clk 0:03:38.9]} 18. Bxe4 {[%clk 0:04:31.6]}
18... Rxf2 {[%clk 0:03:37.7]} 19. Kxf2 {[%clk 0:04:30]} 19... Rf8+ {[%clk
0:03:36]} 20. Bf3 {[%clk 0:04:29.6]} 20... Nc7 {[%clk 0:03:30.3]} 21. Nxc7
{[%clk 0:04:27.8]} 21... Bd4+ {[%clk 0:03:22.3]} 22. Kg3 {[%clk 0:04:24.9]}
22... Bxb2 {[%clk 0:03:18.4]} 23. Ra2 {[%clk 0:04:23.3]} 23... Be5+ {[%clk
0:03:13.2]} 24. Kh3 {[%clk 0:04:22.6]} 24... Rf5 {[%clk 0:03:06.6]} 25. Be3
{[%clk 0:04:18.2]} 25... h5 {[%clk 0:02:59]} 26. Qb3 {[%clk 0:04:15.6]} 26... g5
{[%clk 0:02:56.5]} 27. Bxh5 {[%clk 0:04:13.4]} 27... g4+ {[%clk 0:02:49.3]} 28.
Bxg4 {[%clk 0:04:12.6]} 28... Rg5 {[%clk 0:02:45.5]} 29. Bxg5 {[%clk 0:04:11.2]}
29... a6 {[%clk 0:02:39.8]} 30. Be6+ {[%clk 0:04:09.9]} 30... Kg7 {[%clk
0:02:30.6]} 31. Qf3 {[%clk 0:04:07.6]} 31... Kg6 {[%clk 0:02:26.6]} 32. Qf5+
{[%clk 0:04:03]} 32... Kh5 {[%clk 0:02:24.1]} 33. Bf7# {[%clk 0:04:00.4]} 1-0

[Event "Live Chess"]
[Site "Chess.com"]
[Date "2023.05.20"]
[Round "-"]
[White "JackRudd"]
[Black "BearFromUkraine"]
[Result "1-0"]
[WhiteElo "2399"]
[BlackElo "1139"]
[TimeControl "300"]
[EndTime "10:05:27 PDT"]
[Termination "JackRudd won by resignation"]

1. d4 {[%clk 0:04:58.6]} 1... d5 {[%clk 0:04:58.5]} 2. c4 {[%clk 0:04:57.2]}
2... e6 {[%clk 0:04:57.1]} 3. Nc3 {[%clk 0:04:55.9]} 3... Nf6 {[%clk 0:04:55.1]}
4. cxd5 {[%clk 0:04:55.2]} 4... Nxd5 {[%clk 0:04:52]} 5. Bg5 {[%clk 0:04:54.7]}
5... Qxg5 {[%clk 0:04:44.9]} 6. Nf3 {[%clk 0:04:53.9]} 6... Qd8 {[%clk 0:04:43]}
7. e4 {[%clk 0:04:52.6]} 7... Nxc3 {[%clk 0:04:41.7]} 8. bxc3 {[%clk 0:04:52]}
8... Be7 {[%clk 0:04:37.6]} 9. Bd3 {[%clk 0:04:50.9]} 9... O-O {[%clk
0:04:34.6]} 10. h4 {[%clk 0:04:46.8]} 10... Nc6 {[%clk 0:04:28.6]} 11. e5 {[%clk
0:04:45.2]} 11... b6 {[%clk 0:04:19.3]} 12. Bxh7+ {[%clk 0:04:43.5]} 12... Kxh7
{[%clk 0:04:14.3]} 13. Ng5+ {[%clk 0:04:42.4]} 13... Bxg5 {[%clk 0:04:12.7]} 14.
hxg5+ {[%clk 0:04:41.2]} 14... Kg8 {[%clk 0:04:10.9]} 15. Qh5 {[%clk 0:04:38.1]}
15... f6 {[%clk 0:03:52.2]} 16. g6 {[%clk 0:04:34.2]} 1-0